Department Family,Entity,Date,Expense Type,Expense area,Supplier,Transaction Number,Amount in Sterling �s incl VAT ,Supplier VAT Registration number
NHS,Glos Hospitals NHS Foundation Trust,02/08/2022,Finished processed goods,Inventories,Bayer,000326-2,"45,622.80", 
NHS,Glos Hospitals NHS Foundation Trust,02/08/2022,Finished processed goods,Inventories,Alloga UK Limited,000329-32,"29,160.00", 
NHS,Glos Hospitals NHS Foundation Trust,09/08/2022,Finished processed goods,Inventories,Bayer,000333-531,"49,272.62", 
NHS,Glos Hospitals NHS Foundation Trust,09/08/2022,Finished processed goods,Inventories,Roche Products Limited,000333-532,"36,863.76", 
NHS,Glos Hospitals NHS Foundation Trust,09/08/2022,Finished processed goods,Inventories,Janssen Cilag Limited,000333-557,"83,462.40", 
NHS,Glos Hospitals NHS Foundation Trust,09/08/2022,Finished processed goods,Inventories,Qualasept Ltd t/a Bath ASU,000333-591,"74,867.52", 
NHS,Glos Hospitals NHS Foundation Trust,09/08/2022,Finished processed goods,Inventories,Alloga UK Limited,000334-170,"27,120.00", 
NHS,Glos Hospitals NHS Foundation Trust,09/08/2022,Finished processed goods,Inventories,Alloga UK Limited,000334-174,"45,000.00", 
NHS,Glos Hospitals NHS Foundation Trust,09/08/2022,Finished processed goods,Inventories,Alloga UK Limited,000334-176,"27,120.00", 
NHS,Glos Hospitals NHS Foundation Trust,09/08/2022,Finished processed goods,Inventories,Alloga UK Limited,000334-182,"45,000.00", 
NHS,Glos Hospitals NHS Foundation Trust,09/08/2022,Finished processed goods,Inventories,Janssen Cilag Limited,000334-197,"83,462.40", 
NHS,Glos Hospitals NHS Foundation Trust,09/08/2022,Finished processed goods,Inventories,Janssen Cilag Limited,000334-200,"25,960.42", 
NHS,Glos Hospitals NHS Foundation Trust,09/08/2022,Finished processed goods,Inventories,Novartis Pharmaceuticals UK Limited,000334-51,"32,054.40", 
NHS,Glos Hospitals NHS Foundation Trust,09/08/2022,Finished processed goods,Inventories,Novartis Pharmaceuticals UK Limited,000334-55,"32,054.40", 
NHS,Glos Hospitals NHS Foundation Trust,09/08/2022,Finished processed goods,Inventories,Bayer,000334-70,"49,272.62", 
NHS,Glos Hospitals NHS Foundation Trust,09/08/2022,Finished processed goods,Inventories,Bayer,000334-74,"49,272.62", 
NHS,Glos Hospitals NHS Foundation Trust,09/08/2022,Finished processed goods,Inventories,Bayer,000334-77,"49,272.62", 
NHS,Glos Hospitals NHS Foundation Trust,09/08/2022,Finished processed goods,Inventories,Bristol Myers Squibb Pharmaceuticals Limited,000334-79,"47,160.00", 
NHS,Glos Hospitals NHS Foundation Trust,09/08/2022,Finished processed goods,Inventories,Bristol Myers Squibb Pharmaceuticals Limited,000334-80,"45,126.90", 
NHS,Glos Hospitals NHS Foundation Trust,09/08/2022,Finished processed goods,Inventories,Bristol Myers Squibb Pharmaceuticals Limited,000334-81,"44,722.39", 
NHS,Glos Hospitals NHS Foundation Trust,09/08/2022,Finished processed goods,Inventories,Bristol Myers Squibb Pharmaceuticals Limited,000334-82,"44,049.60", 
NHS,Glos Hospitals NHS Foundation Trust,09/08/2022,Finished processed goods,Inventories,Roche Products Limited,000334-88,"54,990.00", 
NHS,Glos Hospitals NHS Foundation Trust,09/08/2022,Finished processed goods,Inventories,Roche Products Limited,000334-89,"32,716.56", 
NHS,Glos Hospitals NHS Foundation Trust,09/08/2022,Finished processed goods,Inventories,Roche Products Limited,000334-90,"54,234.00", 
NHS,Glos Hospitals NHS Foundation Trust,09/08/2022,Finished processed goods,Inventories,Roche Products Limited,000334-93,"26,712.00", 
NHS,Glos Hospitals NHS Foundation Trust,09/08/2022,Finished processed goods,Inventories,Roche Products Limited,000334-94,"58,656.00", 
NHS,Glos Hospitals NHS Foundation Trust,09/08/2022,Finished processed goods,Inventories,Roche Products Limited,000334-95,"74,474.40", 
NHS,Glos Hospitals NHS Foundation Trust,16/08/2022,Finished processed goods,Inventories,Alliance Healthcare,000336-184,"68,169.60", 
NHS,Glos Hospitals NHS Foundation Trust,16/08/2022,Finished processed goods,Inventories,Janssen Cilag Limited,000338-84,"47,692.80", 
NHS,Glos Hospitals NHS Foundation Trust,16/08/2022,Finished processed goods,Inventories,Alliance Healthcare,000339-160,"74,102.44", 
NHS,Glos Hospitals NHS Foundation Trust,16/08/2022,Finished processed goods,Inventories,Novartis Pharmaceuticals UK Limited,000339-91,"36,892.80", 
NHS,Glos Hospitals NHS Foundation Trust,16/08/2022,Finished processed goods,Inventories,Bayer,000339-94,"49,272.62", 
NHS,Glos Hospitals NHS Foundation Trust,16/08/2022,Finished processed goods,Inventories,Roche Products Limited,000339-97,"54,990.00", 
NHS,Glos Hospitals NHS Foundation Trust,23/08/2022,Finished processed goods,Inventories,Qualasept Ltd t/a Bath ASU,000340-152,"145,991.66", 
NHS,Glos Hospitals NHS Foundation Trust,23/08/2022,Finished processed goods,Inventories,Qualasept Ltd t/a Bath ASU,000340-153,"37,844.16", 
NHS,Glos Hospitals NHS Foundation Trust,23/08/2022,Finished processed goods,Inventories,Qualasept Ltd t/a Bath ASU,000340-154,"37,973.76", 
NHS,Glos Hospitals NHS Foundation Trust,23/08/2022,Finished processed goods,Inventories,Octapharma Limited,000340-49,"38,700.00", 
NHS,Glos Hospitals NHS Foundation Trust,23/08/2022,Finished processed goods,Inventories,Aah Pharmaceuticals Limited,000340-82,"31,168.80", 
NHS,Glos Hospitals NHS Foundation Trust,23/08/2022,Finished processed goods,Inventories,Bayer,000341-4,"45,622.80", 
NHS,Glos Hospitals NHS Foundation Trust,23/08/2022,Finished processed goods,Inventories,Celgene Limited,000341-45,"26,066.88", 
NHS,Glos Hospitals NHS Foundation Trust,23/08/2022,Finished processed goods,Inventories,Bayer,000341-5,"45,622.80", 
NHS,Glos Hospitals NHS Foundation Trust,23/08/2022,Finished processed goods,Inventories,Bayer,000341-7,"54,747.36", 
NHS,Glos Hospitals NHS Foundation Trust,31/08/2022,Finished processed goods,Inventories,Bayer,000349-112,"49,272.62", 
NHS,Glos Hospitals NHS Foundation Trust,31/08/2022,Finished processed goods,Inventories,Bristol Myers Squibb Pharmaceuticals Limited,000349-114,"55,062.00", 
NHS,Glos Hospitals NHS Foundation Trust,31/08/2022,Finished processed goods,Inventories,Roche Products Limited,000349-116,"30,710.15", 
NHS,Glos Hospitals NHS Foundation Trust,31/08/2022,Finished processed goods,Inventories,Roche Products Limited,000349-117,"41,471.64", 
NHS,Glos Hospitals NHS Foundation Trust,31/08/2022,Finished processed goods,Inventories,Alloga UK Limited,000349-145,"27,299.76", 
NHS,Glos Hospitals NHS Foundation Trust,31/08/2022,Finished processed goods,Inventories,Alloga UK Limited,000349-147,"45,000.00", 
NHS,Glos Hospitals NHS Foundation Trust,31/08/2022,Finished processed goods,Inventories,Alloga UK Limited,000349-149,"27,120.00", 
NHS,Glos Hospitals NHS Foundation Trust,31/08/2022,Finished processed goods,Inventories,Janssen Cilag Limited,000349-156,"88,231.68", 
NHS,Glos Hospitals NHS Foundation Trust,31/08/2022,Finished processed goods,Inventories,Qualasept Ltd t/a Bath ASU,000349-284,"37,433.76", 
NHS,Glos Hospitals NHS Foundation Trust,09/08/2022,Computer Software / License  Fees,Computing - CGH HQ,Softcat Ltd,906488,"53,749.92", 
NHS,Glos Hospitals NHS Foundation Trust,09/08/2022,Computer Software / License  Fees,Computing - CGH HQ,Softcat Ltd,906977,"53,749.92", 
NHS,Glos Hospitals NHS Foundation Trust,23/08/2022,Non - Healthcare NHS Foundation Trust,Pharmacy Admin - CGH,HA90825 Uni Hosp Bristol Weston Found Trust,907955,"41,708.51", 
NHS,Glos Hospitals NHS Foundation Trust,23/08/2022,Admin & Clerical - Agency,Computing - CGH HQ,Insight Direct (UK) Limited,910467,"28,838.88", 
NHS,Glos Hospitals NHS Foundation Trust,09/08/2022,Contract : Other External,GHP Contract,Gloucester Healthcare Partnership Limited,912522,"33,335.52", 
NHS,Glos Hospitals NHS Foundation Trust,09/08/2022,Non - Healthcare - NHS Trusts,Hereford Clinic Rental,HA95059 Wye Valley NHS Trust,912607,"155,586.00", 
NHS,Glos Hospitals NHS Foundation Trust,02/08/2022,Computer Hardware Purchases,IT Recharges,XMA Limited,912771,"27,236.40", 
NHS,Glos Hospitals NHS Foundation Trust,02/08/2022,Purchase Computers/Systems,Capital Project Control,XMA Limited,913453,"46,080.00", 
NHS,Glos Hospitals NHS Foundation Trust,09/08/2022,Laboratory Reagents,Roche MSP,Roche Diagnostics Limited,915667,"1,034,683.50", 
NHS,Glos Hospitals NHS Foundation Trust,09/08/2022,Contract : Other External,GHP Contract,Gloucester Healthcare Partnership Limited,916944,"645,707.41", 
NHS,Glos Hospitals NHS Foundation Trust,09/08/2022,Contract : Other External,GHP Contract,Gloucester Healthcare Partnership Limited,916945,"27,774.06", 
NHS,Glos Hospitals NHS Foundation Trust,02/08/2022,Computer Hardware Purchases,IT Recharges,XMA Limited,917432,"53,635.60", 
NHS,Glos Hospitals NHS Foundation Trust,09/08/2022,Sal Sacrifice Bike Scheme,Pay Deductions,Tusker Direct,917901,"53,106.58", 
NHS,Glos Hospitals NHS Foundation Trust,09/08/2022,Computer Maintenance,Clinical Systems,DH OpCo Limited,918583,"50,318.87", 
NHS,Glos Hospitals NHS Foundation Trust,23/08/2022,Drugs,Insulin Pump Therapy,Medtronic Limited,918594,"51,600.00", 
NHS,Glos Hospitals NHS Foundation Trust,02/08/2022,Fresh Blood & Plasma Products,Blood Products,HA73961 NHS Blood & Transplant,918675,"45,402.19", 
NHS,Glos Hospitals NHS Foundation Trust,02/08/2022,External Contracts : Other,Radiography,HA90825 Uni Hosp Bristol Weston Found Trust,918852,"48,015.39", 
NHS,Glos Hospitals NHS Foundation Trust,02/08/2022,External Contracts : Other,Radiography,HA90825 Uni Hosp Bristol Weston Found Trust,918853,"38,635.72", 
NHS,Glos Hospitals NHS Foundation Trust,02/08/2022,Non - Healthcare - NHS Trusts,Staff Health & Wellbeing,Gloucestershire Health and Care NHS FT Pr GCS,918874,"461,000.00", 
NHS,Glos Hospitals NHS Foundation Trust,02/08/2022,Prescribing Control,Payables - Manual,HA79125 NHSBSA,918884,"120,880.36", 
NHS,Glos Hospitals NHS Foundation Trust,02/08/2022,External Contracts : Other,Radiography,HA90825 Uni Hosp Bristol Weston Found Trust,918888,"113,482.01", 
NHS,Glos Hospitals NHS Foundation Trust,02/08/2022,Computer Hardware Purchases,CITS CCG Projects,Insight Direct (UK) Limited,918915,"26,920.51", 
NHS,Glos Hospitals NHS Foundation Trust,02/08/2022,Contractual Clinical Services,Renal Dialysis,B Braun Avitum UK Limited,918927,"178,356.92", 
NHS,Glos Hospitals NHS Foundation Trust,02/08/2022,Telephone Installation & Maintenance,Medical Management,VoicePower Limited,919077,"40,320.00", 
NHS,Glos Hospitals NHS Foundation Trust,09/08/2022,Non - Healthcare - NHS Trusts,Hereford Clinic Rental,HA95059 Wye Valley NHS Trust,919124,"155,586.00", 
NHS,Glos Hospitals NHS Foundation Trust,09/08/2022,Non - Healthcare - NHS Trusts,Hereford Clinic Rental,HA95059 Wye Valley NHS Trust,919125,"155,586.00", 
NHS,Glos Hospitals NHS Foundation Trust,09/08/2022,Non - Healthcare - NHS Trusts,Hereford Clinic Rental,HA95059 Wye Valley NHS Trust,919126,"155,586.00", 
NHS,Glos Hospitals NHS Foundation Trust,09/08/2022,Non - Healthcare - NHS Trusts,Hereford Clinic Rental,HA95059 Wye Valley NHS Trust,919127,"155,586.00", 
NHS,Glos Hospitals NHS Foundation Trust,02/08/2022,External Contracts : Other,Radiography Consultants,Everlight Radiology,919206,"86,730.25", 
NHS,Glos Hospitals NHS Foundation Trust,02/08/2022,Purchase Computers/Systems,Capital Project Control,XMA Limited,919499,"25,832.86", 
NHS,Glos Hospitals NHS Foundation Trust,02/08/2022,Allocate,Payables - Manual,ID Medical Group Limited,919530,"31,687.80", 
NHS,Glos Hospitals NHS Foundation Trust,09/08/2022,Computer Maintenance,IT Contracts Shared Service,WiFi Spark Ltd,919542,"65,289.60", 
NHS,Glos Hospitals NHS Foundation Trust,02/08/2022,Allocate,Payables - Manual,ID Medical Group Limited,919946,"26,694.00", 
NHS,Glos Hospitals NHS Foundation Trust,02/08/2022,Rates,Rates - GRH,Gloucester City Council,920014,"209,920.00", 
NHS,Glos Hospitals NHS Foundation Trust,02/08/2022,Rates,Rates - CGH,Cheltenham Borough Council,920021,"90,624.00", 
NHS,Glos Hospitals NHS Foundation Trust,02/08/2022,NHS Logistics control,Payables - Manual,Supply Chain Coordination Ltd - Consumables,920034,"127,131.21", 
NHS,Glos Hospitals NHS Foundation Trust,23/08/2022,Purchase Computers/Systems,Capital Project Control,XMA Limited,920035,"90,960.00", 
NHS,Glos Hospitals NHS Foundation Trust,09/08/2022,Advertising & Staff Recruitment,Overseas Recruitment,ID Medical Group Limited,920053,"28,800.00", 
NHS,Glos Hospitals NHS Foundation Trust,09/08/2022,Colour Connection,Payables - Manual,Colour Connection,920385,"43,991.03", 
NHS,Glos Hospitals NHS Foundation Trust,09/08/2022,Computer Software / License  Fees,IT Contracts Shared Service,TOPdesk UK Limited,920506,"49,658.40", 
NHS,Glos Hospitals NHS Foundation Trust,19/08/2022,Contract : Other External,UC & Dividend,NHS Gloucestershire Managed Services,920546,"5,841,775.56", 
NHS,Glos Hospitals NHS Foundation Trust,19/08/2022,Contract : Other External,UC & Dividend,NHS Gloucestershire Managed Services,920547,"5,841,775.56", 
NHS,Glos Hospitals NHS Foundation Trust,19/08/2022,Contract : Other External,UC & Dividend,NHS Gloucestershire Managed Services,920548,"5,841,775.56", 
NHS,Glos Hospitals NHS Foundation Trust,09/08/2022,Computer Maintenance,Clinical Systems,Ascribe Ltd (Emis Health),920916,"87,999.60", 
NHS,Glos Hospitals NHS Foundation Trust,09/08/2022,Medical & Surgical Equipment : Disposable,CAPD Renal,Baxter Healthcare Limited,920931,"39,366.30", 
NHS,Glos Hospitals NHS Foundation Trust,09/08/2022,External Contracts : Other,Radiography,Cobalt Health,920938,"45,172.10", 
NHS,Glos Hospitals NHS Foundation Trust,09/08/2022,Contract : Other External,GHP Contract,Gloucester Healthcare Partnership Limited,920940,"775,003.27", 
NHS,Glos Hospitals NHS Foundation Trust,31/08/2022,Medical & Surgical Equipment Maintenance Contracts,ENT OPD,Supply Chain Coordination Ltd - Maint. (201),920959,"29,401.28", 
NHS,Glos Hospitals NHS Foundation Trust,09/08/2022,Training Expenses,Overseas Recruitment,Oxford Brookes University,920989,"31,760.00", 
NHS,Glos Hospitals NHS Foundation Trust,09/08/2022,Allocate,Payables - Manual,ID Medical Group Limited,921149,"50,970.60", 
NHS,Glos Hospitals NHS Foundation Trust,09/08/2022,NHS Logistics control,Payables - Manual,Supply Chain Coordination Ltd - Consumables,921158,"49,018.21", 
NHS,Glos Hospitals NHS Foundation Trust,16/08/2022,Sal Sacrifice Car Scheme,Pay Deductions,Tusker Direct,921173,"52,355.03", 
NHS,Glos Hospitals NHS Foundation Trust,16/08/2022,Computer Hardware Purchases,CITS - Projects,TET Limited t/a Trans Euopean Technology,921295,"39,030.81", 
NHS,Glos Hospitals NHS Foundation Trust,09/08/2022,Computer Software / License  Fees,Computing - CGH HQ,Softcat Ltd,921430,"-53,749.92", 
NHS,Glos Hospitals NHS Foundation Trust,16/08/2022,Medical & Surgical Equipment Maintenance Contracts,Radiography,Supply Chain Coordination Ltd - Maint. (201),921571,"52,356.78", 
NHS,Glos Hospitals NHS Foundation Trust,23/08/2022,Laboratory Reagents,Regional CoVid-19 Testing Centre,Abbott Rapid Diagnostics Limited,921690,"28,800.00", 
NHS,Glos Hospitals NHS Foundation Trust,12/08/2022,Barclay Card,Payables - Manual,Barclaycard Commercial,922151,"128,662.57", 
NHS,Glos Hospitals NHS Foundation Trust,16/08/2022,External Contracts : Other,Clinical Coders,Monmouth Partners Limited,922436,"27,900.00", 
NHS,Glos Hospitals NHS Foundation Trust,12/08/2022,Clinical Negligence,Trustwide Finance,NHS Resolution,922708,"1,937,434.70", 
NHS,Glos Hospitals NHS Foundation Trust,16/08/2022,Building - External Contracts,Capital Project Control,Kier Infrastructure & Overseas Limited,922928,"1,681,523.21", 
NHS,Glos Hospitals NHS Foundation Trust,16/08/2022,Purchase Computers/Systems,Capital Project Control,Hyland Software UK Limited,922929,"74,588.04", 
NHS,Glos Hospitals NHS Foundation Trust,23/08/2022,Medical & Surgical Equipment Maintenance Contracts,Endoscopy CGH,Supply Chain Coordination Ltd - Maint. (201),922942,"175,909.85", 
NHS,Glos Hospitals NHS Foundation Trust,16/08/2022,External Contracts : Other,Radiography Consultants,Everlight Radiology,922944,"80,031.25", 
NHS,Glos Hospitals NHS Foundation Trust,16/08/2022,External Contracts : Other,Radiography,Cobalt Health,922946,"65,390.00", 
NHS,Glos Hospitals NHS Foundation Trust,23/08/2022,Contractual Clinical Services,Cardiology Laboratory,AGITO Medical A/S,922978,"30,580.00", 
NHS,Glos Hospitals NHS Foundation Trust,16/08/2022,Other Clinical Costs,Radiography,Cobalt Health,922987,"34,755.00", 
NHS,Glos Hospitals NHS Foundation Trust,16/08/2022,Finished processed goods,Inventories,Roche Products Limited,923023,"111,720.48", 
NHS,Glos Hospitals NHS Foundation Trust,16/08/2022,NHS Logistics control,Payables - Manual,Supply Chain Coordination Ltd - Consumables,923143,"41,620.38", 
NHS,Glos Hospitals NHS Foundation Trust,23/08/2022,NHS Logistics control,Payables - Manual,Supply Chain Coordination Ltd - Consumables,923290,"52,119.19", 
NHS,Glos Hospitals NHS Foundation Trust,31/08/2022,X-Ray Equipment : Maintenance,Radiography,Supply Chain Coordination Ltd - Maint. (201),923305,"92,802.61", 
NHS,Glos Hospitals NHS Foundation Trust,23/08/2022,NHS Logistics control,Payables - Manual,Supply Chain Coordination Ltd - Consumables,923327,"83,406.59", 
NHS,Glos Hospitals NHS Foundation Trust,23/08/2022,Medical & Surgical Equip. : Finance & Op. Leases,Leases,Siemens Financial Services Limited,923335,"60,294.27", 
NHS,Glos Hospitals NHS Foundation Trust,23/08/2022,Other Transport Costs,Patient Transport Services GHX,E-Zec Medical Transport Services Ltd,923368,"31,362.88", 
NHS,Glos Hospitals NHS Foundation Trust,23/08/2022,NHS Logistics control,Payables - Manual,Supply Chain Coordination Ltd - Consumables,923531,"499,284.66", 
NHS,Glos Hospitals NHS Foundation Trust,23/08/2022,Computer Network Costs,Network Infrastructure,BT Global Services,923539,"42,191.41", 
NHS,Glos Hospitals NHS Foundation Trust,23/08/2022,Computer Network Costs,Network Infrastructure,BT Global Services,923540,"40,900.80", 
NHS,Glos Hospitals NHS Foundation Trust,31/08/2022,Contract : Other External,GHP Contract,Gloucester Healthcare Partnership Limited,923716,"645,707.41", 
NHS,Glos Hospitals NHS Foundation Trust,31/08/2022,Contract : Other External,GHP Contract,Gloucester Healthcare Partnership Limited,923717,"27,774.06", 
NHS,Glos Hospitals NHS Foundation Trust,23/08/2022,Rent,Clinical Academy - Undergraduate Management,Markey Student Property Ltd,923733,"150,536.72", 
NHS,Glos Hospitals NHS Foundation Trust,23/08/2022,Rent,Clinical Academy - Undergraduate Management,Markey Student Property Ltd,923734,"65,029.44", 
NHS,Glos Hospitals NHS Foundation Trust,31/08/2022,MSE General,Capital Project Control,Siemens Financial Services Limited,924308,"26,940.00", 
NHS,Glos Hospitals NHS Foundation Trust,31/08/2022,External Contracts : Other,Clinical Coders,Monmouth Partners Limited,924407,"27,900.00", 
NHS,Glos Hospitals NHS Foundation Trust,31/08/2022,Audit Fees : Statutory,Financial Services,Deloitte and Touche LLP,924428,"46,800.00", 
NHS,Glos Hospitals NHS Foundation Trust,31/08/2022,External Contracts : Other,Radiography,Cobalt Health,924455,"60,685.00", 
NHS,Glos Hospitals NHS Foundation Trust,31/08/2022,Prescribing Control,Payables - Manual,HA79125 NHSBSA,924706,"114,479.89", 
NHS,Glos Hospitals NHS Foundation Trust,31/08/2022,Commercial Sector,Main Theatre - Non Pay only,Genmed.me Limited,924751,"1,776,123.86", 
NHS,Glos Hospitals NHS Foundation Trust,31/08/2022,Commercial Sector,Main Theatre - Non Pay only,Genmed.me Limited,924824,"38,938.68", 
